Workbook

Sheet SKUPNA
B4: SKUPNA REKAPITULACIJA
B6: 1. | C6: GRADBENA DELA - PARKIRIŠČE | E6: =REKAPITULACIJA!H38 -> 0
B7: 2. | C7: PODPORNI ZIDOVI | E7: =[1]Popis!$G$81 -> 0
B8: 3. | C8: NN in JR | E8: ='[2]1.FAZA'!$H$25 -> 0
B9: 4. | C9: EKOLOŠKI OTOK | E9: ='[3]popis eko otok'!$F$19 -> 0
C10: Skupaj | E10: =E6+E7+E8+E9 -> 0
C11: DDV 22% | E11: =E10*0.22 -> 0
C13: VSE SKUPAJ | E13: =E10+E11 -> 0
B16: Opomba: | C16: Ponudnik mora preveriti vse postavke!

Sheet REKAPITULACIJA
C9: Številka načrta: | E9: 1054-15
C11: Projekt : | E11: Parkirišče Vipavski križ-POPIS DEL
C13: Del objekta:
C17: REKAPITULACIJA GRADBENIH STROŠKOV
C21: 1. PREDDELA | H21: ='1. PREDDELA'!F31 -> 
C23: 2. ZEMELJSKA DELA | H23: ='2. ZEMELJSKA DELA'!F41 -> 
C25: 3. VOZIŠČNE KONSTRUKCIJE | H25: ='3. VOZIŠČNE KONSTRUKCIJE'!F46 -> 
C27: 4. ODVODNJAVANJE | H27: ='4. ODVODNJAVANJE'!F24 -> 
C29: 5. GRADBENA IN OBRTNIŠKA DELA | H29: ='5. GRADBENA IN OBRTNIŠKA DELA'!F7 -> 
C31: 6. OPREMA CEST | H31: ='6. OPREMA CEST'!F18 -> 
C33: 7. TUJE STORITVE | H33: ='7. TUJE STORITVE'!F23 -> 
C35: 8. NEPREDVIDENA DELA 5%
F38: skupaj
F40: 22 % DDV
C43: S K U P A J
B48: vrednosti v postavkah množi s faktorjem | F48: 1

Sheet 1. PREDDELA
B2: šifra | C2: enota | D2: opis dela | E2: količina | F2: cena | G2: znesek | I2: TUKAJ VNESI CENE!!!
B4: 1. PREDDELA
E5: =IF(SUM(E8:E11)=0,0,"") -> 
B6: 1.1 Geodetska dela | E6: =IF(SUM(E8:E11)=0,0,"") -> 
E7: =IF(SUM(E8:E11)=0,0,"") -> 
B8: 11 123 | C8: km | D8: Obnova in zavarovanje zakoličbe osi trase ostale ceste v hribovitem terenu *os dostopne ceste na parkirišču | E8: 0.1 | I8: 5000
B9: 11 132 | C9: km | D9: Obnova in zavarovanje zakoličbe trase komunalnih vodov v gričevnatem terenu | E9: 0.2 | I9: 0
B10: 11 233 | C10: kos | D10: Postavitev in zavarovanje prečnega profila za komunalne vode v hribovitem terenu *meteorna kanalizacija(1 profil na 10m) | E10: 7 | I10: 5.54
B11: 11 313 | C11: kos | D11: Postavitev in zavarovanje profilov za zakoličbo objekta s površino nad 500 m2 | E11: 10 | I11: 100
B13: 1.2 Čiščenje terena
B14: 1.2.1 Odstranitev grmovja, dreves, vej in panjev
E15: =IF(SUM(E16:E17)=0,0,"") -> 
B16: 12 153 | C16: kos | D16: Posek in odstranitev drevesa z deblom premera nad 50 cm ter odstranitev vej | E16: 27 | I16: 81
B17: 12 169 | C17: kos | D17: Odstranitev panja s premerom nad 50 cm z odvozom na deponijo na razdaljo nad 1000 m | E17: 27 | I17: 78
E18: =IF(SUM(E21:E22)=0,0,"") -> 
B19: 1.2.3 Porušitev in odstranitev voziščnih konstrukcij | E19: =IF(SUM(E21:E22)=0,0,"") -> 
E20: =IF(SUM(E21:E22)=0,0,"") -> 
B21: 12 322 | C21: m2 | D21: Porušitev in odstranitev asfaltne plasti v debelini 6 do 10 cm | E21: 250 | I21: 4.15
B22: 12 382 | C22: m1 | D22: Rezanje asfaltne plasti s talno diamantno žago, debele 6 do 10 cm | E22: 130 | I22: 4.5
E23: =IF(SUM(E26:E27)=0,0,"") -> 
B24: 1.2.4 Porušitev in odstranitev objektov | E24: =IF(SUM(E26:E27)=0,0,"") -> 
E25: =IF(SUM(E26:E27)=0,0,"") -> 
B26: 12 432 | C26: m1 | D26: Porušitev in odstranitev jaška z notranjo stranico/premerom 61 do 100 cm | E26: 1 | I26: 15
B27: 12 473 | C27: m3 | D27: Porušitev in odstranitev zidu iz kamna v suhi malti *ekološki otok | E27: =12.5*0.5*1.5+0.5*3*3 -> 13.875 | I27: 1
B28: 13 142 | C28: dan | D28: Zavarovanje gradbišča v času gradnje z zaporo skladno z elaboratom začasne ureditve | E28: 21 | I28: 50
B29: 13 143 | C29: kos | D29: Izdelava elaborata začasne ureditve prometa v času gradnje | E29: 1 | I29: 750
D31: SKUPAJ PREDDELA: | F31: =IF(SUM(G8:G29)=0,"",SUM(G8:G29)) -> 

Sheet 2. ZEMELJSKA DELA
B2: šifra | C2: enota | D2: opis dela | E2: količina | F2: cena | G2: znesek | I2: TUKAJ VNESI CENE!!!
B4: 2. ZEMELJSKA DELA
E5: =IF(SUM(E8:E10)=0,0,"") -> 
B6: 2.1 Izkopi | E6: =IF(SUM(E8:E10)=0,0,"") -> 
E7: =IF(SUM(E8:E10)=0,0,"") -> 
B8: 21 114 | C8: m3 | D8: Površinski izkop plodne zemljine – 1. kategorije – strojno z nakladanjem | E8: =2160*1.2*0.15 -> 388.8 | I8: 1.9
B9: 21 241 | C9: m3 | D9: Široki izkop mehke kamnine – 4. kategorije – strojno z odrivom do 50 m | E9: 2230 | I9: 9.02
B10: 21 324 | C10: m3 | D10: Izkop vezljive zemljine/zrnate kamnine – 3. kategorije za temelje, kanalske rove, prepuste, jaške in drenaže, širine do 1,0 m in globine 1,1 do 2,0 m – strojno, planiranje dna ročno *izkop za: - meteorni kanal - cestne požiralnike -revizijske jaške -lovilec olj | E10: =92*1*1+66*1*2+6*1*1*2+6*2*2 -> 260 | I10: 11.33
E11: =IF(SUM(E14:E14)=0,0,"") -> 
B12: 2.2 Planum temeljnih tal | E12: =IF(SUM(E14:E14)=0,0,"") -> 
B14: 22 114 | C14: m2 | D14: Ureditev planuma temeljnih tal mehke kamnine – 4. kategorije | E14: 1550 | I14: 1.5
E15: =IF(SUM(E18:E18)=0,0,"") -> 
B16: 2.3 Ločilne, drenažne in filtrske plasti ter delovni plato | E16: =IF(SUM(E18:E18)=0,0,"") -> 
E17: =IF(SUM(E18:E18)=0,0,"") -> 
B18: 23 311 | C18: m2 | D18: Dobava in vgraditev geotekstilije za ločilno plast (po načrtu), natezna trdnost do 12 kN/m2 | E18: =520+575 -> 1095 | I18: 1.3
E19: =IF(SUM(E22:E25)=0,0,"") -> 
B20: 2.4 Nasipi, zasipi, klini, posteljica in glinasti naboj | E20: =IF(SUM(E22:E25)=0,0,"") -> 
E21: =IF(SUM(E22:E25)=0,0,"") -> 
B22: 24 214 | C22: m3 | D22: Zasip z zrnato kamnino – 3. kategorije - strojno (zasip kanalizacijskih cevinad prekrivno cono do grede) | E22: =66*1*0.7 -> 46.2 | I22: 20
B23: 24 215 | C23: m3 | D23: Zasip z mehko kamnino – 4. kategorije (za zasip ob zidu, uporabi se izkopan material) *nabijanje v slojih po 30cm | E23: =705 -> 705 | I23: 15
B24: 24 441 | C24: m3 | D24: Vgraditev posteljice v debelini plasti do 40 cm iz zrnate kamnine – 3. kategorije *parkirišče in območje kanalizacije pod cesto | E24: =7*80+120*0.4 -> 608 | I24: 19
B25: 24 612 | C25: m2 | D25: Ureditev planuma nasipa, zasipa, klina ali posteljice iz zrnate kamnine – 3. kategorije | E25: 1400 | I25: 2.2
B26: 24 642 | C26: m3 | D26: Izdelava posteljice in obsipa cevi meteorne kanalizacije iz material zrnavosti 0-8mm oz. skladno z navodili proizvajalca cevi *do 30cm nad teme cevi | E26: =66*1*0.6 -> 39.6
E27: =IF(SUM(E30:E31)=0,0,"") -> 
B28: 2.5 Brežine in zelenice | E28: =IF(SUM(E30:E31)=0,0,"") -> 
E29: =IF(SUM(E30:E31)=0,0,"") -> 
B30: 25 142 | C30: m2 | D30: Humusiranje zelenice z valjanjem, v debelini do 15 cm - strojno (uporaba deponiranega humusa z gradbišča) | E30: =780 -> 780 | I30: 2.5
B31: 25 151 | C31: m2 | D31: Doplačilo za zatravitev s semenom | E31: =E30 -> 780 | I31: 0.5
E32: =IF(SUM(E35:E39)=0,0,"") -> 
B33: 2.9 Prevozi, razprostiranje in ureditev deponij materiala | E33: =IF(SUM(E35:E39)=0,0,"") -> 
E34: =IF(SUM(E35:E39)=0,0,"") -> 
B35: 29 118 | C35: t | D35: Prevoz materiala na razdaljo nad 7000 do 10000 m | E35: =E36+E37+E38+E39 -> 3111.272 | I35: 10
B36: 29 151 | C36: t | D36: Odlaganje odpadne zemljine | E36: =(E8-E30*0.15)*1.7 -> 462.06 | I36: 2.5
B37: 29 152 | C37: t | D37: Odlaganje odpadne zmesi zemljine in kamnine na komunalno deponijo, vključno z plačilom komunalne takse | E37: =(E9-E23)*1.7 -> 2592.5 | I37: 3.7
B38: 29 153 | C38: t | D38: Odlaganje odpadnega asfalta na komunalno deponijo,vključno z plačilom komunalne takse | E38: =130*0.1*1.8 -> 23.4 | I38: 12.5
B39: 29 154 | C39: t | D39: Odlaganje odpadnega cementnega betona na komunalno deponijo | E39: =13.88*2.4 -> 33.312 | I39: 12.5
D41: SKUPAJ ZEMELJSKA DELA: | F41: =IF(SUM(G8:G39)=0,"",SUM(G8:G39)) -> 

Sheet 3. VOZIŠČNE KONSTRUKCIJE
B2: šifra | C2: enota | D2: opis dela | E2: količina | F2: cena | G2: znesek | I2: TUKAJ VNESI CENE!!!
B4: 3. VOZIŠČNE KONSTRUKCIJE
B6: 3.1 Nosilne plasti
B7: 3.1.1 Nevezane nosilne plasti | E7: =IF(SUM(E9:E11)=0,0,"") -> 
E8: =IF(SUM(E9:E11)=0,0,"") -> 
B9: 31 121 | C9: m3 | D9: Izdelava nevezane nosilne plasti prodca v debelini do 20 cm *pod travnimi rešetkami v sestavi 30%humus, 70%gramoz *po navodilih proizvajalca | E9: =3.7*70 -> 259 | I9: 17
B10: 31 131 | C10: m3 | D10: Izdelava nevezane nosilne plasti enakomerno zrnatega drobljenca iz kamnine v debelini do 20 cm *dovozna cesta parkirišča | E10: 140 | I10: 17.1
B11: 31 181 | C11: m3 | D11: Izdelava izravnalne plasti iz drobljenca v povprečni debelini do 5 cm *dovozna cesta parkirišča | E11: =700*0.05 -> 35 | I11: 5
B12: 31 186 | C12: m3 | D12: Izdelava izravnalne plasti iz finega kremenčevega peska v povprečni debelini do 5 cm *parkirišča (sestava izkremenovega peska, drobirja, zemlj+gnojilo) *po navodilih proizvajalca travnih rešetk | E12: =640*0.1 -> 64 | I12: 5
E14: =IF(SUM(E17:E17)=0,0,"") -> 
B15: 3.1.4-6 Asfaltne nosilne plasti - Asphalt concrete - base (AC base) | E15: =IF(SUM(E17:E17)=0,0,"") -> 
E16: =IF(SUM(E17:E17)=0,0,"") -> 
B17: 31 452 | C17: m2 | D17: Izdelava nosilne plasti bituminizirane zmesi AC 16 base B 50/70 A4 v debelini 5 cm | E17: 700 | I17: 11
B19: 3.2 Obrabne plasti
B21: 3.2.2 Asfaltne obrabne in zaporne plasti - bitumenski betoni - Asphalt concrete - surface (AC surf) | E21: =IF(SUM(E23:E24)=0,0,"") -> 
E22: =IF(SUM(E23:E24)=0,0,"") -> 
B23: 32 247 | C23: m2 | D23: Izdelava obrabne in zaporne plasti bituminizirane zmesi AC 8 surf B 70/100 A4 v debelini 3,0 cm | E23: =E17 -> 700 | I23: 10
B24: 32 257 | C24: m2 | D24: Doplačilo za izdelavo mulde v širini 50cm in minimalni globini 5cm (asfalt upoštevan v zgornjih postavkah) | E24: =0.5*83 -> 41.5 | I24: 3
E25: =IF(SUM(E28:E30)=0,0,"") -> 
B26: 3.2.4 Asfaltne obrabne in zaporne plasti - površinske prevleke - Surface dressing (SD) | E26: =IF(SUM(E28:E30)=0,0,"") -> 
E27: =IF(SUM(E28:E30)=0,0,"") -> 
B28: 32 490 | C28: m2 | D28: Čiščenje utrjene/odrezkane površine podlage pred pobrizgom z bitumenskim vezivom | E28: =120*0.25 -> 30 | I28: 0.25
B29: 32 497 | C29: m2 | D29: Pobrizg s polimerno bitumensko emulzijo 0,31 do 0,50 kg/m2 | E29: =E28 -> 30 | I29: 3
B30: 32 500 | C30: m1 | D30: Premaz stikov z dilaplastom | E30: 120 | I30: 3.5
E31: =IF(SUM(E34:E34)=0,0,"") -> 
B32: 3.4 Tlakovane obrabne plasti | E32: =IF(SUM(E34:E34)=0,0,"") -> 
E33: =IF(SUM(E34:E34)=0,0,"") -> 
B34: 34 824 | C34: m2 | D34: Dobava in vgradnja travnih rešetk (kot naprimer Hauraton, Salvaverde ali podobno), po detajlu proizvajalca oz. na pripravljeno podlago, zasutje s humusom, kompostom in rastlinsko zemljo ter posejanjem trave (parkirišče) | E34: 640 | I34: 18.5 | J34: cena travnih rešetk cca. 13,35€/m2 brez DDV
B36: 3.5 Robni elementi vozišč
E37: =IF(SUM(E40:E40)=0,0,"") -> 
B38: 3.5.2 Robniki | E38: =IF(SUM(E40:E40)=0,0,"") -> 
E39: =IF(SUM(E40:E40)=0,0,"") -> 
B40: 35 214 | C40: m1 | D40: Dobava in vgraditev predfabriciranega dvignjenega robnika iz cementnega betona s prerezom 15/25 cm | E40: 160 | I40: 13.5
E41: =IF(SUM(E44:E44)=0,0,"") -> 
B42: 3.5.3 Obrobe | E42: =IF(SUM(E44:E44)=0,0,"") -> 
E43: =IF(SUM(E44:E44)=0,0,"") -> 
B44: 35 313 | C44: m1 | D44: Izdelava obrobe iz malih tlakovcev iz naravnega kamna velikosti 10 cm/10 cm /10 cm | E44: =390+74+64 -> 528 | I44: 15
D46: SKUPAJ VOZIŠČNE KONSTRUKCIJE: | F46: =IF(SUM(G9:G44)=0,"",SUM(G9:G44)) -> 

Sheet 4. ODVODNJAVANJE
B2: šifra | C2: enota | D2: opis dela | E2: količina | F2: cena | G2: znesek | I2: TUKAJ VNESI CENE!!!
B4: 4. ODVODNJAVANJE
E5: =IF(SUM(E8:E12)=0,0,"") -> 
B6: 4.3 Globinsko odvodnjavanje - kanalizacija | E6: =IF(SUM(E8:E12)=0,0,"") -> 
E7: =IF(SUM(E8:E12)=0,0,"") -> 
B8: 43 222 | C8: m1 | D8: Izdelava kanalizacije iz cevi iz polivinilklorida, vključno s podložno plastjo iz zmesi kamnitih zrn, premera 20 cm, v globini do 1,0 m | E8: 70 | I8: 26.36
B9: 43 232 | C9: m1 | D9: Izdelava kanalizacije iz cevi iz polivinilklorida, vključno s podložno plastjo iz cementnega betona, premera 20 cm, v globini do 1,0 m (PVC DN 200 drenažno kanalizacijska cev) | E9: 80 | I9: 25.6
B10: 43 511 | C10: m1 | D10: Doplačilo za izdelavo kanalizacije v globini 1,1 do 2 m s cevmi premera do 30 cm | E10: 80 | I10: 0
B11: 43 832 | C11: m1 | D11: Preskus tesnosti cevi premera 21 do 50 cm | E11: 80 | I11: 2.3
B12: 43 841 | C12: m1 | D12: Pregled vgrajenih cevi s TV kamero | E12: 80 | I12: 2.2 | K12: pregled vseh vgrajenih cevi
E13: =IF(SUM(E16:E22)=0,0,"") -> 
B14: 4.4 Jaški | E14: =IF(SUM(E16:E22)=0,0,"") -> 
E15: =IF(SUM(E16:E22)=0,0,"") -> 
B16: 44 132 | C16: kos | D16: Izdelava jaška iz cementnega betona, krožnega prereza s premerom 50 cm, globokega do 1,5 m | E16: 7 | I16: 175
B17: 44 163 | C17: kos | D17: Izdelava jaška iz cementnega betona, krožnega prereza s premerom 80 cm, globokega 1,5 do 2,0 m | E17: 6 | I17: 215
B18: 44 855 | C18: kos | D18: Dobava in vgraditev rešetke iz duktilne litine z nosilnostjo 400 kN, s prerezom 500/500 mm | E18: 6 | I18: 170
B19: 44 889 | C19: kos | D19: Dobava in vgraditev koalescentnnega lovilnika odpadnih voda iz poliestra, ali enakovrednega materiala z baypassom skladno s SIST EN 858-2, Q ≥ 20 l/s | E19: 1 | I19: 4600 | K19: lovilec olj, nabavna cena 2700 eur
B20: 44 951 | C20: kos | D20: Dobava in vgraditev pokrova iz duktilne litine z nosilnostjo 125 kN, krožnega prereza s premerom 500 mm | E20: 1 | I20: 168.8
B21: 44 972 | C21: kos | D21: Dobava in vgraditev pokrova iz duktilne litine z nosilnostjo 400 kN, krožnega prereza s premerom 600 mm | E21: 6 | I21: 286.8
B22: 44 994 | C22: kos | D22: Izdelava priključka na vtočni jašek meteornega kanala komplet z obbetoniranjem in vrtanjem v stene jaška | E22: 1 | I22: 25
D24: SKUPAJ ODVODNJAVANJE: | F24: =IF(SUM(G5:G22)=0,"",SUM(G5:G22)) -> 

Sheet 5. GRADBENA IN OBRTNIŠKA DELA
B2: šifra | C2: enota | D2: opis dela | E2: količina | F2: cena | G2: znesek | I2: TUKAJ VNESI CENE!!!
B4: 5. GRADBENA IN OBRTNIŠKA DELA
D7: SKUPAJ GRADBENA IN OBRTNIŠKA DELA: | F7: =IF(SUM(G5:G5)=0,"",SUM(G5:G5)) -> 

Sheet 6. OPREMA CEST
B2: šifra | C2: enota | D2: opis dela | E2: količina | F2: cena | G2: znesek | I2: TUKAJ VNESI CENE!!!
B4: 6. OPREMA CEST
E5: =IF(SUM(E8:E11)=0,0,"") -> 
B6: 6.1 Pokončna oprema cest | E6: =IF(SUM(E8:E11)=0,0,"") -> 
E7: =IF(SUM(E8:E11)=0,0,"") -> 
B8: 61 112 | C8: kos | D8: Izdelava temelja iz cementnega betona C 12/15, globine 50 cm, premera 30 cm | E8: 1 | I8: 55
B9: 61 216 | C9: kos | D9: Dobava in vgraditev stebrička za prometni znak iz vroče cinkane jeklene cevi s premerom 64 mm, dolge 3000 mm | E9: 1 | I9: 23.5 | K9: glede cenik znakov
B10: 61 641 | C10: kos | D10: Dobava in pritrditev okroglega prometnega znaka, podloga iz aluminijaste pločevine, znak z razredom odbojnosti RA2, A= 400 mm (2102 Stop znak) | E10: 1 | I10: 40 | K10: pridobil ceno glede na cenik prom.znakov za leto 2014
B11: 61 723 | C11: kos | D11: Dobava in pritrditev prometnega znaka, podloga iz aluminijaste pločevine, znak z razredom odbojnosti RA2, vrste, velikost od 0,21 do 0,40 m2 (2436-2 Parkirni prostor) | E11: 1 | I11: 60 | K11: pridobil ceno glede na cenik prom.znakov za leto 2014
E12: =IF(SUM(E15:E16)=0,0,"") -> 
B13: 6.2 Označbe na voziščih | E13: =IF(SUM(E15:E16)=0,0,"") -> 
E14: =IF(SUM(E15:E16)=0,0,"") -> 
B15: 62 111 | C15: m1 | D15: Izdelava tankoslojne vzdolžne označbe na vozišču z enokomponentno belo barvo, vključno 250 g/m2 posipa z drobci / kroglicami stekla, strojno, debelina plasti suhe snovi 200 µm, širina črte 10 cm | E15: 2.5 | I15: 2.4
B16: 62 163 | C16: m2 | D16: Izdelava tankoslojne prečne in ostalih označb na vozišču z enokomponentno belo barvo, vključno 250 g/m2 posipa z drobci / kroglicami stekla, strojno, debelina plasti suhe snovi 250 µm, širina črte 50 cm (5211 Stop črta) | E16: 3.5 | I16: 3.8
D18: SKUPAJ OPREMA CEST: | F18: =IF(SUM(G8:G16)=0,"",SUM(G8:G16)) -> 

Sheet 7. TUJE STORITVE
B2: šifra | C2: enota | D2: opis dela | E2: količina | F2: cena | G2: znesek | I2: TUKAJ VNESI CENE!!!
B4: 7. TUJE STORITVE
E5: =IF(SUM(E8:E8)=0,0,"") -> 
B6: 7.2 Elektroenergetski vodi | E6: =IF(SUM(E8:E8)=0,0,"") -> 
E7: =IF(SUM(E8:E8)=0,0,"") -> 
B8: 72 111 | C8: m1 | D8: Zaščita elektroenergetskega voda nizke, srednje ali visoke napetosti ter razsvetljave | E8: 10 | I8: 20
E9: =IF(SUM(E12:E12)=0,0,"") -> 
B10: 7.3 Telekomunikacijske naprave | E10: =IF(SUM(E12:E12)=0,0,"") -> 
E11: =IF(SUM(E12:E12)=0,0,"") -> 
B12: 73 900 | C12: m1 | D12: Zaščita vkopanega kabelskega TK in CTK voda (zaščitna cev in obbetoniranje) | E12: 10 | I12: 30
E13: =IF(SUM(E16:E16)=0,0,"") -> 
B14: 7.6 Vodovodi | E14: =IF(SUM(E16:E16)=0,0,"") -> 
E15: =IF(SUM(E16:E16)=0,0,"") -> 
B16: 76 800 | C16: m1 | D16: Zaščita vodovoda pri križanju (zaščitna cev in obbetoniranje) | E16: =2*3 -> 6 | I16: 30
E17: =IF(SUM(E20:E21)=0,0,"") -> 
B18: 7.9 Preizkusi, nadzor in tehnična dokumentacija | E18: =IF(SUM(E20:E21)=0,0,"") -> 
E19: =IF(SUM(E20:E21)=0,0,"") -> 
B20: 79 311 | C20: ur | D20: Projektantski nadzor. Obračun projektantskega nadzora se bo izvedel po dokazljivih dejanskih stroških na podlagi računa izvajalca projektantskega nadzora. | E20: 20 | I20: 52
B21: 79 514 | C21: kos | D21: Izdelava geodetskega posnetka in projektne dokumentacije za projekt izvedenih gradbenih del ter vris komunalnih vodov v kataster pri upravljalcih (za vse faze skupaj) | E21: 1 | I21: 3500
D23: SKUPAJ TUJE STORITVE: | F23: =IF(SUM(G8:G21)=0,"",SUM(G8:G21)) -> 
